[Event "14th Poti Open-A 2019"]
[Site "Poti"]
[Date "2019.07.14"]
[Round "2.20"]
[White "Siprashvili, Ivane"]
[Black "Manukyan, Sevak N."]
[Result "0-1"]
[ECO "A16"]
[WhiteElo "2062"]
[BlackElo "1830"]
[Annotator "NA"]
[PlyCount "146"]
[EventDate "2019.07.13"]
[EventType "swiss"]
[EventCountry "GEO"]
[SourceTitle "playchess.com"]
[Source "ChessBase"]
[SourceQuality "1"]
[TimeControl "40/5400+30:1800+30"]

1. c4 {[%emt 0:00:00]} Nf6 {[%emt 0:00:00]} 2. Nc3 {[%emt 0:00:00]} c5 {[%emt 0:00:32]} 3. Nf3 {[%emt 0:00:06]} b6 {[%emt 0:00:20]} 4. d4 {[%emt 0:02:52]} cxd4 {[%emt 0:00:07]} 5. Qxd4 {[%emt 0:00:20]} Bb7 {[%emt 0:00:34]} 6. Bf4 {[%emt 0:02:05]} d6 {[%emt 0:01:26]} 7. Qd2 {[%emt 0:00:35]} Nbd7 {[%emt 0:00:50]} 8. e3 {[%emt 0:00:16]} g6 {[%emt 0:02:17]} 9. Be2 {[%emt 0:00:18]} Bg7 {[%emt 0:01:00]} 10. O-O {[%emt 0:00:24]} O-O {[%emt 0:04:30]} 11. h3 {[%emt 0:00:37]} Rc8 {[%emt 0:00:48]} 12. Rac1 {[%emt 0:00:21]} Nc5 {[%emt 0:02:50]} 13. Rfd1 {[%emt 0:08:35]} Nce4 {[%emt 0:04:35]} 14. Nxe4 {[%emt 0:00:47]} Nxe4 {[%emt 0:00:04]} 15. Qb4 {[%emt 0:00:27]} Qc7 {[%emt 0:04:21]} 16. Nd2 {[%emt 0:01:47]} Nc5 {[%emt 0:01:16]} 17. Qa3 {[%emt 0:02:16]} Ba8 {[%emt 0:13:09]} 18. Bg3 {[%emt 0:05:41]} Qc6 $15 {[%emt 0:02:05]} 19. f3 {[%emt 0:04:54]} Qa4 {[%emt 0:02:48]} 20. Nb1 {[%emt 0:04:46]} Qxa3 21. bxa3 {[%emt 0:00:05]} Na4 {[%emt 0:02:46]} 22. Be1 {[%emt 0:03:26]} Rc7 {[%emt 0:10:15]} 23. Rc2 {[%emt 0:09:19]} Rfc8 {[%emt 0:04:31]} 24. Rdc1 {[%emt 0:01:10]} d5 {[%emt 0:04:38]} 25. Nc3 {[%emt 0:06:06]} Nxc3 {[%emt 0:03:21]} 26. Bxc3 {[%emt 0:00:03]} Bxc3 {[%emt 0:00:10]} 27. Rxc3 {[%emt 0:00:04]} Bb7 {[%emt 0:00:22]} 28. a4 {[%emt 0:06:32]} Rc5 {[%emt 0:03:11]} 29. Kf2 {[%emt 0:06:09]} Ba6 {[%emt 0:01:19]} 30. e4 {[%emt 0:01:09]} e6 {[%emt 0:11:17]} 31. Ke3 {[%emt 0:03:55]} dxc4 {[%emt 0:00:45]} 32. Rd1 {[%emt 0:00:13]} R8c7 {[%emt 0:04:19]} 33. Rd8+ {[%emt 0:00:39]} Kg7 {[%emt 0:00:23]} 34. f4 {[%emt 0:00:12]} Ra5 {[%emt 0:00:16]} 35. Bd1 {[%emt 0:00:02]} Bb7 {[%emt 0:01:53]} 36. Rd4 {[%emt 0:00:14]} Rac5 {[%emt 0:01:22]} 37. Be2 {[%emt 0:00:11]} Ba6 {[%emt 0:00:11]} 38. g4 {[%emt 0:01:07]} Ra5 {[%emt 0:00:40]} 39. Bd1 {[%emt 0:00:08]} Rac5 {[%emt 0:02:37]} 40. Be2 {[%emt 0:00:51]} Kf8 {[%emt 0:01:17]} 41. h4 {[%emt 0:30:28]} Ke7 {[%emt 0:30:16]} 42. g5 {[%emt 0:00:46]} Ra5 {[%emt 0:02:48]} 43. Bd1 {[%emt 0:00:48]} e5 {[%emt 0:00:08]} 44. fxe5 {[%emt 0:00:39]} Rxe5 {[%emt 0:00:08]} 45. Rd5 {[%emt 0:00:28]} Rxd5 {[%emt 0:00:19]} 46. exd5 {[%emt 0:00:01]} Kd6 {[%emt 0:00:13]} 47. Kd4 {[%emt 0:00:13]} Rc5 {[%emt 0:00:22]} 48. Bf3 {[%emt 0:00:17]} Ra5 {[%emt 0:00:11]} 49. Be4 {[%emt 0:01:06]} Rxa4 {[%emt 0:00:56]} 50. a3 {[%emt 0:00:58]} Bb7 {[%emt 0:01:01]} 51. h5 {[%emt 0:04:10]} Ra5 {[%emt 0:00:31]} 52. hxg6 {[%emt 0:00:13]} hxg6 {[%emt 0:01:13]} 53. Rg3 {[%emt 0:02:10]} Rc5 {[%emt 0:02:00]} 54. Rf3 {[%emt 0:00:45]} Bxd5 {[%emt 0:00:36]} 55. Bxd5 {[%emt 0:00:29]} Rxd5+ {[%emt 0:00:05]} 56. Kxc4 {[%emt 0:00:03]} Rf5 {[%emt 0:00:36]} 57. Rd3+ {[%emt 0:00:11]} Kc6 {[%emt 0:00:09]} 58. Rg3 {[%emt 0:00:10]} Rf4+ {[%emt 0:00:22]} 59. Kb3 {[%emt 0:00:10]} Rf5 {[%emt 0:00:21]} 60. Kc4 {[%emt 0:00:07]} Kd6 {[%emt 0:00:19]} 61. Rd3+ {[%emt 0:00:19]} Ke6 {[%emt 0:00:06]} 62. Re3+ {[%emt 0:04:38]} Re5 {[%emt 0:00:19]} 63. Rg3 {[%emt 0:03:13]} a6 {[%emt 0:00:11]} 64. Kb4 {[%emt 0:01:02]} f6 {[%emt 0:01:47]} 65. gxf6 {[%emt 0:00:06]} Kxf6 {[%emt 0:00:04]} 66. Kc4 {[%emt 0:00:26]} g5 {[%emt 0:00:07]} 67. Kd4 {[%emt 0:00:03]} Re8 {[%emt 0:00:26]} 68. Rf3+ {[%emt 0:00:57]} Kg6 {[%emt 0:00:05]} 69. Rc3 {[%emt 0:00:02]} Kf5 {[%emt 0:00:13]} 70. Rc6 {[%emt 0:00:05]} Re6 {[%emt 0:00:09]} 71. Rc8 {[%emt 0:00:08]} g4 {[%emt 0:00:23]} 72. Rf8+ {[%emt 0:00:25]} Rf6 {[%emt 0:00:04]} 73. Rg8 {[%emt 0:00:08]} Kf4 {[%emt 0:00:03]} 0-1

[Event "14th Poti Open-A 2019"]
[Site "Poti"]
[Date "2019.07.14"]
[Round "2.21"]
[White "Saakyan, David"]
[Black "Bechvaia, Gabriel"]
[Result "0-1"]
[ECO "B35"]
[WhiteElo "1558"]
[BlackElo "1793"]
[Annotator "NA"]
[PlyCount "76"]
[EventDate "2019.07.13"]
[EventType "swiss"]
[EventCountry "GEO"]
[SourceTitle "playchess.com"]
[Source "ChessBase"]
[SourceQuality "1"]
[TimeControl "40/5400+30:1800+30"]

1. e4 {[%emt 0:00:00]} c5 {[%emt 0:00:00]} 2. Nf3 {[%emt 0:00:00]} Nc6 {[%emt 0:00:11]} 3. d4 {[%emt 0:00:17]} cxd4 {[%emt 0:00:05]} 4. Nxd4 {[%emt 0:00:09]} g6 {[%emt 0:00:21]} 5. Bc4 {[%emt 0:01:07]} Bg7 {[%emt 0:01:23]} 6. Be3 {[%emt 0:00:43]} Nf6 {[%emt 0:00:16]} 7. Nc3 {[%emt 0:00:12]} O-O {[%emt 0:00:16]} 8. f3 {[%emt 0:00:17]} Qb6 {[%emt 0:02:24]} 9. Qd2 {[%emt 0:18:46]} Nxe4 {[%emt 0:02:04]} 10. Nxe4 {[%emt 0:15:39]} Bxd4 {[%emt 0:00:48]} 11. Bh6 {[%emt 0:10:59]} Qxb2 {[%emt 0:05:41]} 12. Rd1 {[%emt 0:07:57]} Bg7 {[%emt 0:00:37]} 13. Bxg7 Kxg7 {[%emt 0:00:28]} 14. Bb3 {[%emt 0:03:22]} d6 {[%emt 0:04:06]} 15. h4 {[%emt 0:00:51]} h5 {[%emt 0:03:33]} 16. g4 {[%emt 0:00:54]} Qe5 {[%emt 0:00:28]} 17. Qg2 {[%emt 0:03:35]} hxg4 {[%emt 0:02:46]} 18. Rd5 {[%emt 0:01:53]} Qf4 {[%emt 0:01:21]} 19. Nd2 {[%emt 0:09:03]} Ne5 {[%emt 0:02:25]} 20. h5 {[%emt 0:06:33]} Nxf3+ {[%emt 0:03:22]} 21. Nxf3 {[%emt 0:00:22]} gxf3 {[%emt 0:00:02]} 22. Qf2 {[%emt 0:01:09]} Be6 {[%emt 0:03:17]} 23. Rd4 {[%emt 0:01:35]} Qe5+ {[%emt 0:00:16]} 24. Kd1 {[%emt 0:00:43]} Bxb3 {[%emt 0:00:45]} 25. axb3 {[%emt 0:00:08]} Rh8 {[%emt 0:00:39]} 26. Rdh4 {[%emt 0:01:00]} g5 {[%emt 0:03:16]} 27. Re1 {[%emt 0:06:30]} Qa1+ {[%emt 0:02:59]} 28. Kd2 {[%emt 0:00:12]} Qa5+ {[%emt 0:00:06]} 29. b4 {[%emt 0:00:08]} Qf5 {[%emt 0:00:18]} 30. Rh2 {[%emt 0:01:26]} e5 {[%emt 0:01:38]} 31. Re3 {[%emt 0:00:58]} g4 {[%emt 0:00:10]} 32. Qh4 {[%emt 0:00:24]} Qf4 {[%emt 0:00:57]} 33. Rh1 {[%emt 0:02:37]} Rag8 {[%emt 0:03:03]} 34. Rg1 {[%emt 0:00:10]} Kh6 {[%emt 0:00:30]} 35. c3 {[%emt 0:01:55]} f2 {[%emt 0:01:10]} 36. Rf1 {[%emt 0:00:14]} g3 {[%emt 0:00:08]} 37. Qe7 {[%emt 0:00:24]} g2 {[%emt 0:00:17]} 38. Qxd6+ {[%emt 0:00:13]} f6 {[%emt 0:00:02]} 0-1

[Event "14th Poti Open-A 2019"]
[Site "Poti"]
[Date "2019.07.14"]
[Round "2.22"]
[White "Liponava, Zurab"]
[Black "Petrosyan, Tigran Sur."]
[Result "1/2-1/2"]
[ECO "C04"]
[WhiteElo "1793"]
[BlackElo "1554"]
[Annotator "NA"]
[PlyCount "105"]
[EventDate "2019.07.13"]
[EventType "swiss"]
[EventCountry "GEO"]
[SourceTitle "playchess.com"]
[Source "ChessBase"]
[SourceQuality "1"]
[TimeControl "40/5400+30:1800+30"]

1. e4 {[%emt 0:00:00]} e6 {[%emt 0:00:00]} 2. d4 {[%emt 0:00:00]} d5 {[%emt 0:00:00]} 3. Nd2 {[%emt 0:00:16]} Nc6 {[%emt 0:00:39]} 4. Ngf3 {[%emt 0:01:38]} Nf6 {[%emt 0:00:28]} 5. e5 {[%emt 0:01:03]} Nd7 {[%emt 0:00:14]} 6. c3 {[%emt 0:01:27]} f6 {[%emt 0:00:30]} 7. exf6 {[%emt 0:00:14]} Qxf6 {[%emt 0:00:12]} 8. Be2 {[%emt 0:02:42]} Bd6 {[%emt 0:00:26]} 9. Nf1 {[%emt 0:02:25]} O-O {[%emt 0:00:36]} 10. Ng3 {[%emt 0:00:35]} Ne7 {[%emt 0:03:22]} 11. Bg5 {[%emt 0:02:32]} Qf7 {[%emt 0:01:06]} 12. Bxe7 {[%emt 0:00:15]} Qxe7 {[%emt 0:01:27]} 13. O-O {[%emt 0:02:33]} c6 {[%emt 0:03:20]} 14. c4 {[%emt 0:11:12]} Nf6 {[%emt 0:04:58]} 15. Bd3 {[%emt 0:01:54]} Ng4 {[%emt 0:13:52]} 16. Qc2 {[%emt 0:03:45]} g6 {[%emt 0:09:26]} 17. Rae1 {[%emt 0:08:48]} Qf6 {[%emt 0:07:21]} 18. h3 {[%emt 0:03:53]} Nh6 {[%emt 0:01:09]} 19. Ne5 {[%emt 0:03:56]} Bxe5 {[%emt 0:03:48]} 20. dxe5 {[%emt 0:02:15]} Qg7 {[%emt 0:03:44]} 21. f4 {[%emt 0:08:58]} Bd7 {[%emt 0:03:56]} 22. Rf2 {[%emt 0:04:11]} Rf7 {[%emt 0:02:46]} 23. Qc3 {[%emt 0:05:23]} Raf8 {[%emt 0:01:35]} 24. Ref1 {[%emt 0:00:24]} Kh8 {[%emt 0:02:03]} 25. b4 {[%emt 0:01:03]} Bc8 {[%emt 0:05:31]} 26. a4 {[%emt 0:02:23]} Rd8 {[%emt 0:01:35]} 27. c5 {[%emt 0:01:00]} Qf8 {[%emt 0:05:54]} 28. Ne2 {[%emt 0:01:40]} Nf5 {[%emt 0:01:25]} 29. Bxf5 {[%emt 0:02:08]} gxf5 {[%emt 0:00:33]} 30. g4 {[%emt 0:03:23]} Rg7 {[%emt 0:02:32]} 31. g5 {[%emt 0:00:47]} Qf7 {[%emt 0:02:35]} 32. Ng3 {[%emt 0:05:26]} Bd7 {[%emt 0:00:31]} 33. h4 {[%emt 0:00:14]} Be8 {[%emt 0:00:22]} 34. h5 {[%emt 0:00:04]} Qe7 {[%emt 0:01:47]} 35. Qd4 {[%emt 0:02:54]} Qf8 {[%emt 0:00:50]} 36. Kg2 {[%emt 0:00:49]} Rb8 {[%emt 0:01:41]} 37. a5 {[%emt 0:01:15]} a6 {[%emt 0:00:47]} 38. Rh1 {[%emt 0:00:07]} Rd8 {[%emt 0:00:46]} 39. Kf3 {[%emt 0:01:21]} Rg8 {[%emt 0:02:10]} 40. Rg2 {[%emt 0:00:48]} Rd7 {[%emt 0:01:21]} 41. Ne2 {[%emt 0:30:51]} Rdg7 {[%emt 0:34:36]} 42. Qf2 {[%emt 0:00:23]} Qe7 {[%emt 0:04:01]} 43. Nd4 {[%emt 0:00:28]} Rf8 {[%emt 0:00:52]} 44. Ke3 {[%emt 0:02:53]} Rgg8 {[%emt 0:00:39]} 45. Qh4 {[%emt 0:00:40]} Rg7 {[%emt 0:01:34]} 46. Ne2 {[%emt 0:00:42]} Rgg8 {[%emt 0:00:42]} 47. Kd4 {[%emt 0:00:32]} Rg7 {[%emt 0:00:25]} 48. h6 {[%emt 0:01:13]} Rg6 {[%emt 0:00:36]} 49. Ng3 {[%emt 0:00:07]} Bf7 {[%emt 0:01:40]} 50. Nh5 {[%emt 0:01:19]} Rfg8 {[%emt 0:00:51]} 51. Nf6 {[%emt 0:00:39]} Rf8 {[%emt 0:00:17]} 52. Rb2 {[%emt 0:00:36]} Qc7 {[%emt 0:00:42]} 53. Nh5 {[%emt 0:01:52]} 1/2-1/2

[Event "14th Poti Open-A 2019"]
[Site "Poti"]
[Date "2019.07.14"]
[Round "2.23"]
[White "Karaia, Alika"]
[Black "Chanturia, Lasha"]
[Result "1/2-1/2"]
[ECO "A46"]
[WhiteElo "1525"]
[BlackElo "1742"]
[Annotator "NA"]
[PlyCount "88"]
[EventDate "2019.07.13"]
[EventType "swiss"]
[EventCountry "GEO"]
[SourceTitle "playchess.com"]
[Source "ChessBase"]
[SourceQuality "1"]
[TimeControl "40/5400+30:1800+30"]

1. d4 {[%emt 0:00:00]} Nf6 {[%emt 0:00:00]} 2. Nf3 {[%emt 0:00:00]} e6 {[%emt 0:00:00]} 3. Nbd2 {[%emt 0:00:00]} b6 {[%emt 0:00:03]} 4. b3 {[%emt 0:01:00]} Bb7 {[%emt 0:00:15]} 5. Bb2 {[%emt 0:00:16]} Be7 {[%emt 0:00:19]} 6. e3 {[%emt 0:00:13]} O-O {[%emt 0:00:14]} 7. Bd3 {[%emt 0:00:56]} d5 {[%emt 0:00:17]} 8. O-O {[%emt 0:01:42]} Nc6 {[%emt 0:00:08]} 9. c4 {[%emt 0:02:34]} Nb4 {[%emt 0:02:28]} 10. Be2 {[%emt 0:00:53]} c5 {[%emt 0:02:19]} 11. Ne5 {[%emt 0:03:05]} Ne4 {[%emt 0:04:12]} 12. Nxe4 {[%emt 0:01:32]} dxe4 {[%emt 0:00:08]} 13. a3 {[%emt 0:00:08]} Na6 {[%emt 0:00:46]} 14. f4 {[%emt 0:09:31]} f6 {[%emt 0:10:35]} 15. Ng4 {[%emt 0:02:55]} f5 {[%emt 0:00:58]} 16. Ne5 {[%emt 0:01:10]} Bf6 {[%emt 0:00:14]} 17. Qc2 {[%emt 0:14:13]} Qe7 {[%emt 0:04:14]} 18. Rfd1 {[%emt 0:02:14]} Rad8 {[%emt 0:01:11]} 19. d5 {[%emt 0:07:40]} Nc7 {[%emt 0:06:27]} 20. d6 {[%emt 0:00:21]} Rxd6 {[%emt 0:02:24]} 21. Rxd6 {[%emt 0:00:24]} Qxd6 {[%emt 0:00:16]} 22. Rd1 {[%emt 0:00:28]} Bxe5 {[%emt 0:00:22]} 23. Rxd6 {[%emt 0:00:07]} Bxd6 {[%emt 0:00:05]} 24. Qd2 {[%emt 0:03:48]} Rd8 {[%emt 0:01:41]} 25. Qc3 {[%emt 0:03:37]} Ne8 {[%emt 0:01:42]} 26. g4 {[%emt 0:00:31]} Bc8 {[%emt 0:05:07]} 27. g5 {[%emt 0:01:25]} Bf8 {[%emt 0:03:29]} 28. h4 {[%emt 0:00:20]} Rd7 {[%emt 0:04:56]} 29. h5 {[%emt 0:00:17]} Nc7 {[%emt 0:01:08]} 30. h6 {[%emt 0:03:02]} Bd6 {[%emt 0:06:08]} 31. Bh5 {[%emt 0:02:03]} e5 {[%emt 0:01:44]} 32. fxe5 {[%emt 0:03:31]} Bf8 {[%emt 0:00:33]} 33. e6 {[%emt 0:06:37]} Nxe6 {[%emt 0:00:06]} 34. g6 {[%emt 0:03:46]} Ng5 {[%emt 0:02:39]} 35. Qe5 {[%emt 0:01:42]} hxg6 {[%emt 0:00:19]} 36. hxg7 {[%emt 0:00:11]} Be7 {[%emt 0:04:51]} 37. Qb8 {[%emt 0:04:46]} gxh5 {[%emt 0:04:51]} 38. Qxc8+ {[%emt 0:00:29]} Rd8 {[%emt 0:00:07]} 39. Qc7 {[%emt 0:01:52]} Nf3+ {[%emt 0:08:29]} 40. Kg2 {[%emt 0:02:43]} Rd2+ {[%emt 0:00:50]} 41. Kf1 {[%emt 0:31:40]} Rd1+ {[%emt 0:30:13]} 42. Kg2 {[%emt 0:02:18]} Rd2+ {[%emt 0:04:11]} 43. Kf1 {[%emt 0:00:50]} Rd1+ {[%emt 0:03:49]} 44. Kg2 {[%emt 0:00:40]} Rd2+ {[%emt 0:00:07]} 1/2-1/2

[Event "14th Poti Open-A 2019"]
[Site "Poti"]
[Date "2019.07.14"]
[Round "2.24"]
[White "Qaloyan, Ishkhan"]
[Black "Ghukasyan, Haykaz"]
[Result "1-0"]
[ECO "D70"]
[WhiteElo "1497"]
[BlackElo "1697"]
[Annotator "NA"]
[PlyCount "89"]
[EventDate "2019.07.13"]
[EventType "swiss"]
[EventCountry "GEO"]
[SourceTitle "playchess.com"]
[Source "ChessBase"]
[SourceQuality "1"]
[TimeControl "40/5400+30:1800+30"]

1. d4 {[%emt 0:00:00]} Nf6 {[%emt 0:07:19]} 2. c4 {[%emt 0:00:00]} g6 {[%emt 0:00:13]} 3. Nf3 {[%emt 0:00:00]} Bg7 {[%emt 0:00:05]} 4. g3 {[%emt 0:00:00]} O-O {[%emt 0:00:26]} 5. Bg2 {[%emt 0:00:01]} c6 {[%emt 0:00:06]} 6. O-O {[%emt 0:00:25]} d6 {[%emt 0:00:05]} 7. Nc3 {[%emt 0:00:27]} Nbd7 {[%emt 0:00:30]} 8. Qc2 {[%emt 0:01:27]} e5 {[%emt 0:01:04]} 9. Rd1 {[%emt 0:02:09]} Qe7 {[%emt 0:00:06]} 10. e4 {[%emt 0:01:07]} Re8 {[%emt 0:01:09]} 11. d5 {[%emt 0:03:40]} c5 {[%emt 0:04:47]} 12. Ne1 {[%emt 0:04:33]} Nb6 {[%emt 0:07:57]} 13. Qe2 {[%emt 0:23:30]} Ng4 {[%emt 0:21:19]} 14. h3 {[%emt 0:13:00]} Nh6 {[%emt 0:00:07]} 15. a4 {[%emt 0:02:13]} f5 {[%emt 0:08:24]} 16. a5 {[%emt 0:01:46]} Nd7 {[%emt 0:00:05]} 17. Nd3 {[%emt 0:02:50]} Nf6 {[%emt 0:07:44]} 18. Bg5 {[%emt 0:05:59]} Nf7 {[%emt 0:04:50]} 19. Bxf6 {[%emt 0:02:18]} Qxf6 {[%emt 0:06:34]} 20. b4 {[%emt 0:02:34]} cxb4 {[%emt 0:07:05]} 21. Nxb4 {[%emt 0:00:20]} f4 {[%emt 0:04:07]} 22. g4 {[%emt 0:06:09]} a6 {[%emt 0:06:55]} 23. Na4 {[%emt 0:01:42]} Bf8 {[%emt 0:01:26]} 24. Nd3 {[%emt 0:00:39]} Bd7 {[%emt 0:02:57]} 25. Nb6 {[%emt 0:01:31]} Rad8 {[%emt 0:00:01]} 26. Rab1 {[%emt 0:01:22]} Ng5 {[%emt 0:02:01]} 27. f3 {[%emt 0:00:36]} h5 {[%emt 0:00:03]} 28. Nxd7 {[%emt 0:06:24]} Rxd7 {[%emt 0:00:01]} 29. Rb6 {[%emt 0:01:42]} Qh8 {[%emt 0:01:40]} 30. h4 {[%emt 0:04:11]} hxg4 {[%emt 0:03:29]} 31. hxg5 {[%emt 0:00:06]} g3 {[%emt 0:00:01]} 32. Kf1 {[%emt 0:01:38]} Rh7 {[%emt 0:01:23]} 33. Ke1 {[%emt 0:01:18]} Rc8 {[%emt 0:00:53]} 34. c5 {[%emt 0:02:10]} dxc5 {[%emt 0:01:03]} 35. Rxg6+ {[%emt 0:00:11]} Kf7 {[%emt 0:00:53]} 36. Rf6+ {[%emt 0:00:09]} Kg8 {[%emt 0:00:32]} 37. Nxe5 {[%emt 0:01:16]} Rh1+ {[%emt 0:00:37]} 38. Bxh1 {[%emt 0:00:21]} Qxh1+ {[%emt 0:00:01]} 39. Kd2 {[%emt 0:00:30]} g2 {[%emt 0:00:10]} 40. Rg6+ {[%emt 0:00:43]} Kh7 {[%emt 0:00:56]} 41. Qe1 {[%emt 0:31:45]} Qxe1+ {[%emt 0:30:52]} 42. Rxe1 {[%emt 0:00:12]} c4 {[%emt 0:00:32]} 43. Rg1 {[%emt 0:00:21]} Bg7 {[%emt 0:00:15]} 44. Rxg7+ {[%emt 0:00:18]} Kxg7 {[%emt 0:00:04]} 45. Rxg2 {[%emt 0:00:04]} 1-0

[Event "14th Poti Open-A 2019"]
[Site "Poti"]
[Date "2019.07.14"]
[Round "2.25"]
[White "Khachatryan, Sahak"]
[Black "Lezhava, Beso"]
[Result "0-1"]
[ECO "C55"]
[WhiteElo "1190"]
[BlackElo "1391"]
[Annotator "NA"]
[PlyCount "78"]
[EventDate "2019.07.13"]
[EventType "swiss"]
[EventCountry "GEO"]
[SourceTitle "playchess.com"]
[Source "ChessBase"]
[SourceQuality "1"]
[TimeControl "40/5400+30:1800+30"]

1. e4 {[%emt 0:00:00]} e5 {[%emt 0:10:35]} 2. Nf3 {[%emt 0:00:28]} Nc6 {[%emt 0:00:02]} 3. d4 {[%emt 0:04:13]} exd4 {[%emt 0:06:32]} 4. Bc4 {[%emt 0:00:50]} Nf6 {[%emt 0:00:13]} 5. Ng5 {[%emt 0:04:11]} d5 {[%emt 0:00:45]} 6. exd5 {[%emt 0:02:21]} Qe7+ {[%emt 0:00:09]} 7. Kf1 {[%emt 0:18:52]} Ne5 {[%emt 0:00:12]} 8. Qxd4 {[%emt 0:02:46]} Nxc4 {[%emt 0:04:06]} 9. Qxc4 {[%emt 0:00:27]} Qc5 {[%emt 0:00:39]} 10. Qe2+ {[%emt 0:02:12]} Be7 {[%emt 0:01:29]} 11. Nc3 {[%emt 0:00:37]} O-O {[%emt 0:06:30]} 12. Nge4 {[%emt 0:07:33]} Nxe4 13. Qxe4 {[%emt 0:01:07]} Bf6 {[%emt 0:04:36]} 14. Be3 {[%emt 0:01:09]} Qa5 {[%emt 0:01:10]} 15. Bd4 {[%emt 0:01:07]} Bf5 {[%emt 0:02:15]} 16. Qf4 {[%emt 0:12:08]} Bxd4 {[%emt 0:10:01]} 17. Qxd4 {[%emt 0:00:33]} Bxc2 {[%emt 0:03:33]} 18. g3 {[%emt 0:00:46]} Rad8 {[%emt 0:03:58]} 19. Kg2 {[%emt 0:01:30]} Rd6 {[%emt 0:03:03]} 20. Rac1 Bg6 {[%emt 0:01:29]} 21. Rhe1 {[%emt 0:03:32]} Rfd8 {[%emt 0:03:28]} 22. Qf4 {[%emt 0:01:38]} h6 {[%emt 0:02:35]} 23. Re7 {[%emt 0:04:31]} c6 {[%emt 0:05:57]} 24. dxc6 {[%emt 0:06:35]} Rxc6 {[%emt 0:00:25]} 25. Rxb7 {[%emt 0:04:16]} Rxc3 {[%emt 0:00:23]} 26. Rxa7 {[%emt 0:01:44]} Qxa7 {[%emt 0:01:42]} 27. Rxc3 {[%emt 0:00:06]} Qxa2 {[%emt 0:00:22]} 28. Qb4 {[%emt 0:00:29]} Qa8+ {[%emt 0:00:28]} 29. f3 {[%emt 0:00:29]} Rd2+ {[%emt 0:01:00]} 30. Kh3 {[%emt 0:00:20]} Qd5 {[%emt 0:00:38]} 31. Qb8+ {[%emt 0:00:55]} Kh7 {[%emt 0:00:05]} 32. g4 {[%emt 0:00:14]} f5 {[%emt 0:00:56]} 33. Qa7 {[%emt 0:04:56]} fxg4+ {[%emt 0:00:17]} 34. fxg4 {[%emt 0:00:02]} Qg2+ {[%emt 0:01:01]} 35. Kh4 {[%emt 0:00:07]} Qxh2+ {[%emt 0:00:15]} 36. Rh3 {[%emt 0:00:04]} Qe5 {[%emt 0:00:57]} 37. Qg1 {[%emt 0:00:34]} Qg5+ {[%emt 0:00:33]} 38. Kg3 Rd3+ {[%emt 0:00:39]} 39. Kg2 {[%emt 0:00:21]} Qd2+ {[%emt 0:00:45]} 0-1